Cogmind - Beta 15 @@@ ROGUE MODE // 2025.05.11 @ 16:23:20 Player: Bardic Entropy Result: Destroyed by as-90322 with Assembled Rifle Performance ------------- Evolutions (0) 0 Regions Visited (4) 800 Robots Destroyed (34) 170 Value Destroyed (742) 742 Prototype IDs (5) 100 Alien Tech Used (0) 0 Bonus (333) 333 TOTAL SCORE: 2145 Bonus ------- Follower Combat Kills 33 Aligned with FarCom 300 Cogmind --------- Core Integrity 0/250 Matter 300/300 Energy 265/265 System Corruption 0% Temperature Cool (0) Movement Treading (240) Ox1 Location -9/Mines Parts ------- > --- POWER (1) -------- Improved Ion Engine > --- PROPULSION (2) --- Light Treads > --- UTILITY (2) ------ Medium Storage Unit > --- WEAPON (2) ------- AWS/Thermal > --- INVENTORY (10) --- Improved Ion Engine High-capacity Storage Unit High-capacity Battery (250) High-capacity Matter Pod (200) Improved Terrain Scanner ECM Suite Heavy Assault Rifle Heavy Assault Rifle Grenade Launcher Mining Laser Peak State ------------ > --- POWER ------------ Improved Ion Engine > --- PROPULSION ------- Light Treads Light Treads > --- UTILITY ---------- Medium Storage Unit Light Armor Plating > --- WEAPON ----------- YOLO Cannon > --- INVENTORY -------- Improved Ion Engine High-capacity Storage Unit High-capacity Battery High-capacity Matter Pod Improved Terrain Scanner ECM Suite Heavy Assault Rifle Heavy Assault Rifle Grenade Launcher Mining Laser [Rating: 27] Favorites ----------- Power Light Ion Engine Engine Light Ion Engine Power Core Light Nuclear Core Propulsion Light Treads Treads Light Treads Utility Medium Storage Unit Device Improved Terrain Scanner Storage Medium Storage Unit Protection Light Armor Plating Weapon Beam Cannon Energy Gun AWS/Thermal Energy Cannon Beam Cannon Ballistic Gun Light Assault Rifle Ballistic Cannon Light Cannon Special Weapon Mining Laser Impact Weapon Hammer Build | -11 -10 -10 -10 -9 ------- Run | Yrd Mat Min Exi Min Slots Evolved . | . . . . . Power . | . . . . . Propulsion . | . . . . . Utility . | . . . . . Weapon . | . . . . . Parts Attached 23 | 7 7 6 3 . Power 4 | 1 1 2 . . Engine 3 | 1 1 1 . . Core 1 | . . 1 . . Reactor . | . . . . . Propulsion 4 | 2 . 2 . . Treads 4 | 2 . 2 . . Leg . | . . . . . Wheel . | . . . . . Hover . | . . . . . Flight . | . . . . . Utility 7 | 2 2 2 1 . Device 2 | 1 . . 1 . Storage 3 | 1 1 1 . . Processor . | . . . . . Hackware . | . . . . . Protection 2 | . 1 1 . . Artifact . | . . . . . Weapon 8 | 2 4 . 2 . Energy Gun 2 | 1 . . 1 . Energy Cannon 2 | . 1 . 1 . Ballistic Gun 1 | 1 . . . . Ballistic Cannon 1 | . 1 . . . Launcher . | . . . . . Special Weapon 1 | . 1 . . . Impact Weapon 1 | . 1 . . . Slashing Weapon . | . . . . . Piercing Weapon . | . . . . . Special Melee Weapon . | . . . . . Unidentified Prototypes 3 | . . . 3 . Parts Lost 6 | . 1 3 . 2 Power 1 | . . 1 . . Propulsion 2 | . . 1 . 1 Utility 3 | . 1 1 . 1 Weapon . | . . . . . Highest Loss Streak 3 | . 1 3 . 2 To Critical Strikes . | . . . . . Average Backups 7 | . 4 8 9 10 Power . | . . . 1 1 Propulsion . | . . . . . Utility 3 | . 2 4 4 5 Weapon 3 | . 2 3 4 4 Tool/Special . | . . . . . Unused Backups 14 | 1 1 2 . 10 Power 1 | . . . . 1 Propulsion 1 | 1 . . . . Utility 7 | . 1 1 . 5 Weapon 5 | . . 1 . 4 Tool/Special . | . . . . . Average Slot Usage (%) 94 | . 99 92 96 83 Engine 13 | . 14 13 14 14 Treads 26 | . 28 24 28 27 Device 2 | . 8 . . . Storage 13 | . 13 14 14 14 Protection 9 | . 4 10 13 13 Energy Gun 2 | . 1 . 3 14 Energy Cannon 10 | . 9 14 10 . Ballistic Gun 3 | . 11 . . . Ballistic Cannon 8 | . 4 14 10 . Peak Build Rating 27 | 9 9 10 27 23 Average Rating 10 | 5 8 7 12 22 On Entrance 9 | . 9 8 9 23 Naked Turns . | . . . . . Heaviest Build 28 | 11 22 26 28 28 Greatest Support 40 | 40 40 40 40 40 Greatest Overweight (x) 1 | 1 . . . 1 Average Overweight (x) . | . . . . . Largest Inventory Capacity 20 | 8 10 20 10 10 Average Capacity 9 | 7 9 10 10 10 Most Carried 10 | 2 8 10 10 10 Average Carried 7 | 1 4 8 9 10 Final Capacity 10 | 8 10 10 10 10 Final Carried 10 | 1 8 10 10 10 Class Distribution -------------------- 100% | Mutant Dominant Class ---------------- Mutant | -10/Materials Mutant | -10/Mines Mutant | -10/Exiles Mutant | -9/Mines Resources | -11 -10 -10 -10 -9 ----------- Run | Yrd Mat Min Exi Min Matter Collected 763 | 279 209 235 . 40 Remotely . | . . . . . Salvage Created 997 | 113 414 221 . 249 Parts 63 | 5 35 13 . 10 Haulers Intercepted . | . . . . . Recyclers Shooed 1 | 1 . . . . Parts Field Recycled . | . . . . . Retrieved Matter . | . . . . . Parts Self-Destructed . | . . . . . Prevented . | . . . . . Kills | -11 -10 -10 -10 -9 ------- Run | Yrd Mat Min Exi Min Combat Hostiles Destroyed 32 | . 14 5 . 13 Guns 14 | . 1 . . 13 Cannons 17 | . 12 5 . . Classes Destroyed 10 | 2 5 1 . 2 Worker 1 | . 1 . . . Tunneler 3 | 1 1 1 . . Recycler 1 | 1 . . . . Operator 1 | . 1 . . . Watcher 3 | . 3 . . . Swarmer 12 | . 8 . . 4 Grunt 10 | . 6 4 . . Sentry 1 | . . 1 . . Demolisher 2 | . . . . 2 Assembled 7 | . . . . 7 Best Kill Streak 9 | 1 6 2 . 9 Combat Bots Only 9 | . 4 2 . 9 Max Kills in Single Turn 1 | 1 1 1 . 1 Gunslinging . | . . . . . Exploded . | . . . . . Melee . | . . . . . Uniques/NPCs Destroyed . | . . . . . Combat | -11 -10 -10 -10 -9 -------- Run | Yrd Mat Min Exi Min Hostile Shots Fired 146 | . 60 29 . 57 Missed 31 | . 12 6 . 13 Hits 115 | . 48 23 . 44 Melee 3 | . . . . 3 Projectile 112 | . 48 23 . 41 AOE 6 | . . . . 6 Critical Strikes 1 | . 1 . . . Damage Taken 1464 | . 468 299 . 697 Core 255 | . 73 26 . 156 Absorbed by Shields . | . . . . . Core Remaining (%) 100 | 100 . . . . Volleys Fired 74 | 9 48 17 . . Largest 2 | 2 2 2 . . Hottest 160 | 60 160 90 . . Shots Fired 185 | 18 89 34 . 44 Gun 98 | 18 36 . . 44 Cannon 79 | . 45 34 . . Launcher . | . . . . . Special 8 | . 8 . . . Kinetic 72 | 9 46 17 . . Thermal 113 | 9 43 17 . 44 Explosive . | . . . . . Electromagnetic . | . . . . . Robot Hit Streak 15 | 4 8 7 . 15 Robot Miss Streak 4 | 3 4 2 . 3 Penetration Max . | . . . . . Secondary Targets . | . . . . . Autonomous 44 | . . . . 44 Shots Hit Robots 110 | 10 45 22 . 33 Core Hits 53 | 4 26 9 . 14 Critical Kills 1 | . 1 . . . Critical Parts Destroyed . | . . . . . Critical Strikes 5 | . 2 3 . . Meltdown 1 | . 1 . . . Blast 4 | . 1 3 . . Melee Attacks 8 | . 8 . . . Impact 8 | . 8 . . . Slashing . | . . . . . Piercing . | . . . . . Sneak Attacks . | . . . . . Combat Hostiles . | . . . . . Follow-up Attacks . | . . . . . Damage Inflicted 2183 | 97 681 390 . 1015 Guns 1236 | 97 124 . . 1015 Cannons 899 | . 509 390 . . Explosions . | . . . . . Melee . | . . . . . Ramming . | . . . . . Kinetic 487 | 43 246 198 . . Thermal 1696 | 54 435 192 . 1015 Explosive . | . . . . . Electromagnetic . | . . . . . Impact . | . . . . . Slashing . | . . . . . Piercing . | . . . . . Highest Corruption . | . . . . . Average Corruption . | . . . . . Corruption Purged . | . . . . . Corruption Blocked . | . . . . . Overload Shots . | . . . . . Overflow Damage 6 | . . 6 . . Projectiles 6 | . . 6 . . Explosions . | . . . . . Melee . | . . . . . Knockbacks 5 | . 1 4 . . Impact . | . . . . . Kinetic 5 | . 1 4 . . Secondary . | . . . . . Self-Inflicted Damage . | . . . . . Shots . | . . . . . Rammed . | . . . . . Targets Rammed . | . . . . . Kicked . | . . . . . Crushed . | . . . . . Highest Temperature 334 | 40 272 334 . . Average Temperature 83 | 19 76 116 . . Received Heat Transfer 327 | . 171 156 . . Effects 2 | . 1 1 . . Energy Bleed 1 | . 1 . . . Damage (minor) 1 | . . 1 . . Siege Activations . | . . . . . Martial Activations . | . . . . . Shielding Activations . | . . . . . Robots Disrupted . | . . . . . Combat Hostiles . | . . . . . Robots Corrupted . | . . . . . Combat Hostiles . | . . . . . Parts Fried . | . . . . . Impact Corruptions . | . . . . . Robots Melted 1 | . 1 . . . Combat Hostiles 1 | . 1 . . . Parts Melted 4 | . 2 . . 2 Heat Transferred 2741 | 125 914 407 . 1295 Parts Sabotaged . | . . . . . Parts Stolen . | . . . . . Parts Stripped . | . . . . . Power Chain Reactions . | . . . . . Alert | -11 -10 -10 -10 -9 ------- Run | Yrd Mat Min Exi Min Maximum Alert Level . | . . . . . Low Security (%) 100 | 100 100 100 . 100 Level 1 . | . . . . . Level 2 . | . . . . . Level 3 . | . . . . . Level 4 . | . . . . . Level 5 . | . . . . . High Security . | . . . . . Max Security . | . . . . . Peak Influence 144 | 5 144 50 . 85 Initial . | . . . . . Average 28 | 1 54 5 . 31 Influence Increases 766 | 10 424 154 . 178 Destroy 0b10 Robot/C 520 | . 280 120 . 120 Destroy 0b10 Robot/NC 50 | 10 30 10 . . Destroy Leader 106 | . 66 20 . 20 Allied During Kill 4 | . . 4 . . Successful Hack 24 | . 24 . . . Destroy Structure 17 | . 9 . . 8 Partial Spotted 30 | . . . . 30 Lose Combat Pursuer 15 | . 15 . . . Influence Decreases 713 | 10 424 154 . 125 Time Decay 614 | 10 355 144 . 105 Lost Part 36 | . 6 10 . 20 Purge Threat 63 | . 63 . . . Squads Dispatched 5 | . 5 . . . Investigation 3 | . 3 . . . Extermination . | . . . . . Reinforcement 2 | . 2 . . . Assault . | . . . . . Garrison . | . . . . . Intercept . | . . . . . Searches Triggered . | . . . . . Construction Impeded . | . . . . . Haulers Reinforced . | . . . . . Active Scanning Responses . | . . . . . Cargo Convoy Interrupts . | . . . . . Stealth | -11 -10 -10 -10 -9 --------- Run | Yrd Mat Min Exi Min Distress Signals 3 | . 3 . . . Communications Jammed . | . . . . . Distress Signals . | . . . . . Times Spotted 55 | . 25 5 . 25 Peak Tracking Total 16 | . 7 2 . 16 Tactical Retreats 1 | . 1 . . . Traps | -11 -10 -10 -10 -9 ------- Run | Yrd Mat Min Exi Min Traps Triggered 1 | . 1 . . . Indirectly . | . . . . . Trap Hack Attempts . | . . . . . Triggered . | . . . . . Disarmed . | . . . . . Reprogrammed . | . . . . . Reused . | . . . . . Traps Extracted . | . . . . . Installed . | . . . . . Triggered . | . . . . . Machines | -11 -10 -10 -10 -9 ---------- Run | Yrd Mat Min Exi Min Machines Disabled 1 | . . 1 . . Max in Single Turn 1 | . . 1 . . Machines Repaired . | . . . . . Machines Dismantled . | . . . . . Machines Sabotaged . | . . . . . Overloaded Fab Kills . | . . . . . Hacking | -11 -10 -10 -10 -9 --------- Run | Yrd Mat Min Exi Min Machines Accessed 7 | . 7 . . . Terminals 5 | . 5 . . . Fabricators . | . . . . . Repair Stations 1 | . 1 . . . Recycling Units 1 | . 1 . . . Scanalyzers . | . . . . . Garrison Access . | . . . . . Total Hacks 24 | . 24 . . . Successful 13 | . 13 . . . Failed 11 | . 11 . . . Catastrophic 1 | . 1 . . . Database Lockouts . | . . . . . Manual 15 | . 13 . 2 . Terminals 19 | . 19 . . . Fabricators . | . . . . . Repair Stations 3 | . 3 . . . Recycling Units 2 | . 2 . . . Scanalyzers . | . . . . . Garrison Access . | . . . . . Terminal Hacks 7 | . 7 . . . Prototype ID Bank 1 | . 1 . . . Branch Access Points 1 | . 1 . . . Alert Level 1 | . 1 . . . Unreport Threat 1 | . 1 . . . Locate Traps 2 | . 2 . . . Hauler Manifests 1 | . 1 . . . Fabricator Hacks . | . . . . . Repair Station Hacks 1 | . 1 . . . Scan Component 1 | . 1 . . . Recycling Unit Hacks 1 | . 1 . . . Report Inventory 1 | . 1 . . . Scanalyzer . | . . . . . Garrison Access Hacks . | . . . . . Unauthorized Hacks 4 | . 4 . . . Terminals 4 | . 4 . . . Botnet 4 | . 4 . . . Fabricators . | . . . . . Repair Stations . | . . . . . Recycling Units . | . . . . . Scanalyzers . | . . . . . Garrison Access . | . . . . . Data Cores Recovered . | . . . . . Used . | . . . . . Hacking Detections 7 | . 7 . . . Full Trace Events 2 | . 2 . . . Feedback Events . | . . . . . Feedback Blocked . | . . . . . Robot Schematics Acquired . | . . . . . Robots Built . | . . . . . Authchips . | . . . . . Time . | . . . . . Total Robot Build Rating . | . . . . . Part Schematics Acquired . | . . . . . Parts Built . | . . . . . Authchips . | . . . . . Time . | . . . . . Total Part Build Rating . | . . . . . Parts Repaired . | . . . . . Time . | . . . . . Parts Recycled . | . . . . . Recycled Matter . | . . . . . Retrieved Matter . | . . . . . Retrieved Components . | . . . . . Parts Scanalyzed . | . . . . . Part Schematics Acquired . | . . . . . Parts Damaged . | . . . . . Bothacking | -11 -10 -10 -10 -9 ------------ Run | Yrd Mat Min Exi Min Used RIF Installer . | . . . . . Robots Hacked . | . . . . . Non-combat . | . . . . . Combat . | . . . . . Robot Hacks Applied . | . . . . . Relay Couplers Released . | . . . . . Fabnet Peak Effective % . | . . . . . Robots Rewired . | . . . . . Allies Hacked . | . . . . . Hacks Repelled . | . . . . . Allies | -11 -10 -10 -10 -9 -------- Run | Yrd Mat Min Exi Min Total Allies 2 | . . 2 . . Largest Group 2 | . . 2 2 . Highest-Rated Group 45 | . . 45 45 . Highest-Rated Ally 31 | . . 31 31 . Total Orders . | . . . . . Ally Attacks 1 | . . 1 . . Total Damage 21 | . . 21 . . Kills 1 | . . 1 . . Allies Corrupted . | . . . . . Allies Melted . | . . . . . Intel | -11 -10 -10 -10 -9 ------- Run | Yrd Mat Min Exi Min Active Infowar (turns) 723 | 16 707 . . . Terrain 723 | 16 707 . . . Robot Analysis Total . | . . . . . Derelict Logs Recovered 3 | . . 2 . 1 Drone Launches . | . . . . . Drone Recoveries . | . . . . . Exploration | -11 -10 -10 -10 -9 ------------- Run | Yrd Mat Min Exi Min Turns Passed 3554 | 146 1142 1128 829 309 Spaces Moved 1989 | 71 564 656 512 186 Core 6 | 6 . . . . Treads 1983 | 65 564 656 512 186 Legs . | . . . . . Wheels . | . . . . . Hover . | . . . . . Flight . | . . . . . Fastest Speed 50 | 50 160 160 160 160 Average Speed 160 | 152 160 160 160 163 Slowest Speed 240 | 160 160 160 160 240 Overloaded Moves . | . . . . . Propulsion Burnouts . | . . . . . Robots Hopped . | . . . . . Potential Cave-ins . | . . . . . Cave-ins Triggered . | . . . . . Exploration Rate (%) 67 | 4 90 97 92 54 Regions Visited 4 Branch Regions 3 Pre-discovered Areas 1 | . . 1 . . Known Exits Taken 1 | . 1 . . . Unknown Exits Taken 3 | 1 . 1 1 . Scrap Searched 3 | . . 2 . 1 Spaces Dug 9 | . 9 . . . Terrain Destroyed 18 | . 9 . . 9 Melee 4 | . 4 . . . Projectile 14 | . 5 . . 9 AOE . | . . . . . Terrain Rammed . | . . . . . Walls Destroyed . | . . . . . Machines Disabled . | . . . . . Actions | -11 -10 -10 -10 -9 --------- Run | Yrd Mat Min Exi Min Total 2190 | 89 686 700 523 192 Wait 49 | . 34 8 1 6 Move 1985 | 70 563 655 511 186 Hop . | . . . . . Pick Up 19 | 2 10 6 1 . Fast Attach 15 | 7 2 2 4 . Attach 2 | . 1 1 . . Detach . | . . . . . Swap 20 | . 15 5 . . Drop 18 | 1 5 6 6 . Fire 74 | 9 48 17 . . Melee 8 | . 8 . . . Ram . | . . . . . Kick . | . . . . . Crush . | . . . . . Escape Stasis . | . . . . . Rewire . | . . . . . Trap . | . . . . . Miscellaneous . | . . . . . Route ------- -11/Scrapyard -10/Materials (discovered 3 exits: [*Mat x2] / *Min) -10/Mines (discovered 2 exits: [*Mat] / *Exi) -10/Exiles (discovered 2 exits: [*Min x2]) -9/Mines History --------- Turn | Location | Event 7 | -11/Scrapyard | Discovered new exit (range 15) 147 | -11/Scrapyard | Entered Materials 310 | -10/Materials | Build established: Mutant 491 | -10/Materials | Discovered new exit (range 13) 770 | -10/Materials | Discovered new exit (range 3) 956 | -10/Materials | Discovered new exit (range 13) 1232 | -10/Materials | Identified exit to Mines 1289 | -10/Materials | Entered Mines 1612 | -10/Mines | Lost 3 parts (1p1n1u) 1613 | -10/Mines | Found a hidden stash of uninstalled traps 1619 | -10/Mines | Learned 2 Materials zone layouts 1630 | -10/Mines | Learned location of Zion (-6) 2178 | -10/Mines | Discovered new exit (range 10) 2318 | -10/Mines | Deemed a non-threat by the Exiles lab entrance 2318 | -10/Mines | Discovered new exit (range 5) 2417 | -10/Mines | Entered Exiles 2417 | -10/Exiles | Accompanied by 2 allies 2442 | -10/Exiles | Discovered new exit (range 15) 2447 | -10/Exiles | Led the pair of lost Derelicts to a safe place 2476 | -10/Exiles | Met 8R-AWN 2500 | -10/Exiles | Met EX-HEX 2619 | -10/Exiles | Visited The Gauntlet 2786 | -10/Exiles | Met EX-DEC 2927 | -10/Exiles | Met EX-BIN 2946 | -10/Exiles | Aligned with FarCom system 2948 | -10/Exiles | Given EX-Vault access code 3030 | -10/Exiles | Opened EX-Vault 3038 | -10/Exiles | Found Prototype Device 3038 | -10/Exiles | Identified Supersonic Drone Bay 3048 | -10/Exiles | Found Prototype Energy Cannon 3048 | -10/Exiles | Identified YOLO Cannon 3057 | -10/Exiles | Found Prototype Energy Gun 3057 | -10/Exiles | Identified AWS/Thermal 3096 | -10/Exiles | Warned to stay clear of 0b10 Research branches 3225 | -10/Exiles | Discovered new exit (range 14) 3246 | -10/Exiles | Left Exiles lab with AWS/Thermal 3246 | -10/Exiles | Entered Mines 3331 | -9/Mines | YI-UF0 nonchalantly dropped a Grenade Launcher on the ground 3422 | -9/Mines | Learned Materials terminal intel 3490 | -9/Mines | Assembled infested the area 3534 | -9/Mines | Core integrity fell below 50% 3545 | -9/Mines | Core integrity fell below 20% 3555 | -9/Mines | Destroyed by as-90322 with Assembled Rifle Last Messages --------------- 03531_ D-53 Grenadier destroyed. 03533_ as-49570 destroyed. 03537_ Lgt. Treads destroyed. 03539_ as-91106 destroyed. 03540_ as-28943 destroyed. 03541_ Lgt. Armor Plating destroyed. 03542_ D-53 Grenadier destroyed. 03543_ as-36667 destroyed. 03545_ as-31089 destroyed. 03545_ U-05 Engineer lays Concrete. 03547_ The unstable cave ceiling collapses. 03547_ U-05 Engineer lays Concrete. 03549_ Destroyed Asb. Hover Unit. 03550_ as-52816 destroyed. 03550_ U-05 Engineer lays Concrete. 03551_ as-95253 destroyed. 03552_ as-19722 destroyed. 03552_ U-05 Engineer lays Concrete. 03553_ as-36120 destroyed. 03553_ U-05 Engineer lays Concrete. Map ----- +----------------------------------------------------+ | ??????# #######???????????? | | ??????## ##??????????? | | ???????# #??????????? | | ???????# ## #??????????? | | ???????## ####### ##?????????? | | ????????####?????# #?????????? | | ????????????????## #?????????# | | ????????????##### ##### | | ???????????## % | | ???????????# ###### | | ??????????## ## #?????????? | | ???????#### ###### #?????????? | | ??????## #;##### #?????????? | | ?????## ;# #?????????? | | ?????# *% ##????????? | | ?????# ## = #????????? | | ?????##### u #????????? | | ?????????# # !% #????????? | | ???????### ##????????? | | ??????## ####?????????? | | ??????# ####????????????? | | ??????# a #??????????????? | | ?????## a ##??????????????? | | ?????#; a%a ##???????????????? | | ??????#aa # #???????????????? | | ??????# @#### ?????????????? | | ??????##a#??? #???????????? | | ???????# ??? #??????????? | | ???????###????% #??????????? | | ?????????????? ##??????????? | | ?????????????? " ##???????????? | | ??????????????? ##????????????? | | ??????????????? ###?????????????? | | ????????????????#???????????????? | | ????????????????????????????????? | | ????????????????????????????????? | | ????????????????????????????????? | | ????????????????????????????????? | | ????????????????????????????????? | | ????????????????????????????????? | | ????????????????????????????????? | | ????????????????????????????????? | | | | | | | | | | | | | | | | | +----------------------------------------------------+ Best States ------------- Heat Dissipation 25 Energy Generation 14 Energy Capacity 265 Matter Stores 300 Matter Capacity 300 Sight Range 16 Terrain Scan Range 16 Terrain Scan Density 10 Armor Coverage 150 Evasion (%) 40 Recoil Reduction 2 Item Schematics ----------------- None Robot Schematics ------------------ None Fabricated ------------ Nothing Repaired ---------- Nothing Alien Tech Used ----------------- None Achievements -------------- None Challenges ------------ None Game ------ Seed CoolingPersonalWell Manual? 0 Play Time 00:47:59 Cumulative 43.7 hours Start 2025.05.11 @ 15:33:20 End 2025.05.11 @ 16:23:20 Sessions 1 Manual Loads 0 Difficulty Rogue Special Mode None Game No. 48 Rogue 48 Adventurer 0 Explorer 0 Win Type - Total 0 Types 0/0/0/0/0/0/0/0/0/0 Lore% 14 Gallery% 19 Achievement% 21 Wizard Run 0 Options --------- Layout 0 ASCII 0 Keyboard 0 Movement Mouse Keybinds 0 Fullscreen 1 Font 16/TerminusTall Map View 75x55 Zoom Use 0% Tactical HUD 1 Map Filters NONE Filters NONE Steam 1 RUN: 1db1a30f-1e69-4b84-b65f-0874fe80be5f